[Event "World Junior U20 Girls 2018"]
[Site "Gebze"]
[Date "2018.09.05"]
[Round "1"]
[White "Nomin-Erdene, Davaademberel"]
[Black "Gomez Barrera, Javiera Belen"]
[Result "0-1"]
[ECO "C93"]
[WhiteElo "2377"]
[BlackElo "2035"]
[Annotator "NA"]
[PlyCount "66"]
[EventDate "2018.09.05"]
[EventType "swiss"]
[EventCountry "TUR"]
[SourceTitle "playchess.com"]
[Source "ChessBase"]
[SourceQuality "1"]
[TimeControl "40/5400+30:1800+30"]

1. e4 e5 2. Nf3 Nc6 3. Bb5 a6 4. Ba4 Nf6 5. O-O Be7 6. Re1 b5 7. Bb3 d6 8. c3 O-O 9. h3 {[%emt 0:01:30]} Bb7 {[%emt 0:03:30]} 10. d4 {[%emt 0:00:30]} Re8 {[%emt 0:00:00]} 11. Nbd2 {[%emt 0:06:30]} h6 {[%emt 0:02:00]} 12. a3 {[%emt 0:00:30]} Bf8 {[%emt 0:00:30]} 13. Bc2 {[%emt 0:00:30]} d5 {[%emt 0:14:30]} 14. exd5 {[%emt 0:06:30]} Qxd5 {[%emt 0:00:30]} 15. Ne4 {[%emt 0:00:30]} exd4 {[%emt 0:01:30]} 16. Nxf6+ {[%emt 0:05:30]} gxf6 {[%emt 0:00:00]} 17. Rxe8 {[%emt 0:06:30]} Rxe8 {[%emt 0:01:00]} 18. Qd3 {[%emt 0:01:30]} f5 {[%emt 0:16:30]} 19. Bf4 {[%emt 0:03:30]} Ne5 {[%emt 0:22:30]} 20. Bxe5 {[%emt 0:04:30]} Rxe5 {[%emt 0:00:00]} 21. cxd4 {[%emt 0:00:30]} Re6 {[%emt 0:16:00]} 22. Nh4 {[%emt 0:18:30]} Bg7 {[%emt 0:13:06]} 23. Qg3 {[%emt 0:10:30]} f4 {[%emt 0:06:36]} 24. Qxf4 {[%emt 0:11:30]} Qxd4 {[%emt 0:01:02]} 25. Qxc7 {[%emt 0:05:51]} Qxh4 {[%emt 0:00:48]} 26. Qxb7 {[%emt 0:02:46]} Bxb2 {[%emt 0:02:20]} 27. Rf1 {[%emt 0:04:48]} Bd4 {[%emt 0:00:32]} 28. Kh1 {[%emt 0:02:39]} Rf6 {[%emt 0:00:32]} 29. Qc8+ {[%emt 0:02:59]} Kg7 {[%emt 0:00:14]} 30. g3 {[%emt 0:05:54]} Qg5 {[%emt 0:00:36]} 31. Qb7 {[%emt 0:00:53]} Rxf2 {[%emt 0:00:45]} 32. Rxf2 {[%emt 0:00:30]} Bxf2 {[%emt 0:00:30]} 33. Bb3 {[%emt 0:00:30]} Qc1+ {[%emt 0:00:30]} 0-1

[Event "World Junior U20 Girls 2018"]
[Site "Gebze"]
[Date "2018.09.05"]
[Round "1"]
[White "Tokhirjonova, Gulrukhbegim"]
[Black "Yang, Yijing"]
[Result "1-0"]
[ECO "B02"]
[WhiteElo "2369"]
[BlackElo "2018"]
[Annotator "NA"]
[PlyCount "93"]
[EventDate "2018.09.05"]
[EventType "swiss"]
[EventCountry "TUR"]
[SourceTitle "playchess.com"]
[Source "ChessBase"]
[SourceQuality "1"]
[TimeControl "40/5400+30:1800+30"]

1. e4 d5 2. exd5 Nf6 3. Nc3 Nxd5 4. d4 {[%emt 0:02:00]} Nxc3 {[%emt 0:10:00]} 5. bxc3 {[%emt 0:00:30]} c5 {[%emt 0:00:00]} 6. Bd3 {[%emt 0:05:30]} Nc6 {[%emt 0:02:00]} 7. Ne2 {[%emt 0:01:30]} e5 {[%emt 0:14:30]} 8. O-O {[%emt 0:13:30]} Be7 {[%emt 0:05:30]} 9. Be3 {[%emt 0:03:30]} Be6 {[%emt 0:04:30]} 10. Rb1 {[%emt 0:08:30]} Qc7 {[%emt 0:06:30]} 11. dxe5 {[%emt 0:07:30]} Rd8 {[%emt 0:07:30]} 12. Nf4 {[%emt 0:02:30]} Qxe5 {[%emt 0:12:30]} 13. Qf3 {[%emt 0:02:30]} Na5 {[%emt 0:08:30]} 14. Nxe6 {[%emt 0:01:30]} Qxe6 {[%emt 0:00:30]} 15. Bxc5 {[%emt 0:04:30]} Qd5 {[%emt 0:01:30]} 16. Qxd5 {[%emt 0:00:30]} Rxd5 {[%emt 0:00:30]} 17. Bxa7 {[%emt 0:00:30]} O-O {[%emt 0:00:30]} 18. Rfd1 {[%emt 0:01:30]} g6 {[%emt 0:02:30]} 19. c4 {[%emt 0:01:30]} Rd7 {[%emt 0:00:30]} 20. Be2 {[%emt 0:01:30]} Rxd1+ {[%emt 0:02:35]} 21. Rxd1 {[%emt 0:00:00]} Rd8 {[%emt 0:00:25]} 22. Rxd8+ {[%emt 0:03:00]} Bxd8 {[%emt 0:00:30]} 23. f4 {[%emt 0:01:30]} Kf8 {[%emt 0:01:35]} 24. Bc5+ {[%emt 0:01:30]} Ke8 {[%emt 0:00:50]} 25. Kf2 {[%emt 0:00:00]} Kd7 {[%emt 0:00:30]} 26. Ke3 {[%emt 0:00:00]} Ke6 {[%emt 0:01:30]} 27. Bg4+ {[%emt 0:01:30]} f5 {[%emt 0:00:50]} 28. Be2 {[%emt 0:00:30]} g5 {[%emt 0:01:02]} 29. fxg5 {[%emt 0:00:30]} Bxg5+ {[%emt 0:00:30]} 30. Kd3 {[%emt 0:00:30]} Nc6 {[%emt 0:00:30]} 31. a4 {[%emt 0:01:30]} Bf6 {[%emt 0:04:49]} 32. c3 {[%emt 0:00:30]} Ne5+ {[%emt 0:01:41]} 33. Kc2 {[%emt 0:00:30]} Bd8 {[%emt 0:00:10]} 34. Kb3 {[%emt 0:00:30]} Ba5 {[%emt 0:00:47]} 35. Bd4 {[%emt 0:00:30]} Nc6 {[%emt 0:03:39]} 36. Bf3 {[%emt 0:00:30]} Nxd4+ {[%emt 0:00:52]} 37. cxd4 {[%emt 0:00:30]} b6 {[%emt 0:00:00]} 38. c5 {[%emt 0:01:30]} Kd7 {[%emt 0:02:05]} 39. Kc4 {[%emt 0:00:30]} bxc5 {[%emt 0:00:00]} 40. dxc5 {[%emt 0:00:30]} Kc7 {[%emt 0:00:00]} 41. Kb5 {[%emt 0:00:30]} Bd2 {[%emt 0:01:10]} 42. a5 {[%emt 0:00:30]} Bf4 {[%emt 0:00:00]} 43. h3 {[%emt 0:00:00]} Bg3 {[%emt 0:01:00]} 44. a6 {[%emt 0:00:00]} Kb8 {[%emt 0:00:00]} 45. Kb6 {[%emt 0:00:30]} Bc7+ {[%emt 0:00:00]} 46. Kc6 {[%emt 0:00:00]} Bg3 {[%emt 0:00:30]} 47. Kd7 {[%emt 0:00:00]} 1-0

[Event "World Junior U20 Girls 2018"]
[Site "Gebze"]
[Date "2018.09.05"]
[Round "1"]
[White "Hojjatova, Aydan"]
[Black "Isha Sharma"]
[Result "0-1"]
[ECO "C07"]
[WhiteElo "2356"]
[BlackElo "2012"]
[Annotator "NA"]
[PlyCount "114"]
[EventDate "2018.09.05"]
[EventType "swiss"]
[EventCountry "TUR"]
[SourceTitle "playchess.com"]
[Source "ChessBase"]
[SourceQuality "1"]
[TimeControl "40/5400+30:1800+30"]

1. e4 e6 2. d4 d5 3. Nd2 c5 4. exd5 Qxd5 5. Ngf3 {[%emt 0:01:30]} cxd4 {[%emt 0:02:30]} 6. Bc4 {[%emt 0:00:30]} Qd8 {[%emt 0:00:30]} 7. O-O {[%emt 0:00:30]} Nc6 {[%emt 0:00:30]} 8. Nb3 {[%emt 0:00:30]} Nf6 {[%emt 0:00:30]} 9. Nbxd4 {[%emt 0:00:30]} Nxd4 {[%emt 0:00:00]} 10. Nxd4 {[%emt 0:00:30]} a6 {[%emt 0:00:00]} 11. Re1 {[%emt 0:01:30]} Bc5 {[%emt 0:04:30]} 12. c3 {[%emt 0:02:30]} O-O {[%emt 0:05:30]} 13. Bg5 {[%emt 0:00:30]} Bd7 {[%emt 0:12:30]} 14. Nf3 {[%emt 0:18:30]} Bc6 {[%emt 0:18:30]} 15. Qe2 {[%emt 0:01:30]} Be7 {[%emt 0:05:30]} 16. Rad1 {[%emt 0:04:30]} Qc7 {[%emt 0:01:30]} 17. Ne5 {[%emt 0:03:30]} Bd5 {[%emt 0:06:30]} 18. Bd3 {[%emt 0:11:30]} Bxa2 {[%emt 0:12:30]} 19. Bxf6 {[%emt 0:00:30]} Bxf6 {[%emt 0:00:30]} 20. Nd7 {[%emt 0:00:00]} Rfd8 {[%emt 0:05:30]} 21. Nxf6+ {[%emt 0:01:00]} gxf6 {[%emt 0:00:30]} 22. Qh5 {[%emt 0:03:30]} Kf8 {[%emt 0:03:30]} 23. Qxh7 {[%emt 0:02:30]} Bb3 {[%emt 0:00:30]} 24. Rd2 {[%emt 0:16:30]} Ke7 {[%emt 0:04:20]} 25. Qe4 {[%emt 0:05:30]} a5 {[%emt 0:00:07]} 26. Ree2 {[%emt 0:02:30]} Bd5 {[%emt 0:01:46]} 27. Qa4 {[%emt 0:03:38]} Bc6 {[%emt 0:09:22]} 28. Qc4 {[%emt 0:04:01]} Qd6 {[%emt 0:05:50]} 29. Qb3 {[%emt 0:12:50]} a4 {[%emt 0:00:42]} 30. Qd1 {[%emt 0:01:48]} Rh8 {[%emt 0:00:22]} 31. h3 {[%emt 0:02:22]} Qf4 {[%emt 0:01:17]} 32. f3 {[%emt 0:00:30]} Rag8 {[%emt 0:00:30]} 33. Be4 {[%emt 0:00:42]} Rxh3 {[%emt 0:00:03]} 34. Bxc6 {[%emt 0:00:29]} Qh2+ {[%emt 0:00:16]} 35. Kf1 {[%emt 0:00:35]} Qh1+ {[%emt 0:01:02]} 36. Kf2 {[%emt 0:00:03]} Qxg2+ {[%emt 0:00:18]} 37. Ke3 {[%emt 0:00:13]} Qg5+ {[%emt 0:00:00]} 38. Kd3 {[%emt 0:00:37]} bxc6 {[%emt 0:00:07]} 39. Kc2 {[%emt 0:00:03]} Qf5+ {[%emt 0:00:25]} 40. Kc1 {[%emt 0:00:00]} e5 {[%emt 0:00:00]} 41. Qxa4 {[%emt 0:09:39]} Rh1+ {[%emt 0:02:33]} 42. Rd1 {[%emt 0:01:30]} Rxd1+ {[%emt 0:00:30]} 43. Qxd1 {[%emt 0:00:00]} Ra8 {[%emt 0:00:30]} 44. Qb3 {[%emt 0:03:00]} Ra1+ {[%emt 0:00:30]} 45. Kd2 {[%emt 0:00:30]} Qxf3 {[%emt 0:01:30]} 46. Qb4+ {[%emt 0:01:32]} Ke6 {[%emt 0:00:30]} 47. Qf8 {[%emt 0:01:51]} Qd5+ {[%emt 0:03:30]} 48. Ke3 {[%emt 0:00:30]} Qd7 {[%emt 0:00:30]} 49. Kf2 {[%emt 0:07:52]} Rd1 {[%emt 0:00:30]} 50. Qb8 {[%emt 0:00:18]} Kf5 {[%emt 0:02:30]} 51. Qb6 {[%emt 0:00:50]} Kg6 {[%emt 0:01:30]} 52. Kg3 {[%emt 0:03:22]} Qd3+ {[%emt 0:00:30]} 53. Re3 {[%emt 0:01:37]} Qf5 {[%emt 0:00:30]} 54. Rf3 {[%emt 0:01:12]} Qg5+ {[%emt 0:00:30]} 55. Kh2 {[%emt 0:00:38]} Rd2+ {[%emt 0:00:00]} 56. Rf2 {[%emt 0:01:16]} Qh4+ {[%emt 0:01:00]} 57. Kg2 {[%emt 0:00:08]} Rxf2+ {[%emt 0:00:30]} 0-1

[Event "World Junior U20 Girls 2018"]
[Site "Gebze"]
[Date "2018.09.05"]
[Round "1"]
[White "Unuk, Laura"]
[Black "Stanciu, Ioana-Georgiana"]
[Result "1-0"]
[ECO "D31"]
[WhiteElo "2299"]
[BlackElo "2000"]
[Annotator "NA"]
[PlyCount "95"]
[EventDate "2018.09.05"]
[EventType "swiss"]
[EventCountry "TUR"]
[SourceTitle "playchess.com"]
[Source "ChessBase"]
[SourceQuality "1"]
[TimeControl "40/5400+30:1800+30"]

1. d4 d5 2. c4 e6 3. Nc3 c6 4. e4 dxe4 5. Nxe4 Bb4+ 6. Bd2 {[%emt 0:01:00]} Bxd2+ {[%emt 0:06:00]} 7. Qxd2 {[%emt 0:03:30]} Nf6 {[%emt 0:01:30]} 8. Nxf6+ {[%emt 0:06:30]} Qxf6 {[%emt 0:00:30]} 9. Nf3 {[%emt 0:00:30]} Na6 {[%emt 0:04:30]} 10. Rd1 {[%emt 0:09:30]} O-O {[%emt 0:02:30]} 11. b4 {[%emt 0:11:30]} Rd8 {[%emt 0:09:30]} 12. Bd3 {[%emt 0:00:30]} Qe7 {[%emt 0:05:30]} 13. a3 {[%emt 0:05:30]} e5 {[%emt 0:04:30]} 14. dxe5 {[%emt 0:03:30]} Bg4 {[%emt 0:02:30]} 15. Qe3 {[%emt 0:03:30]} Re8 {[%emt 0:06:30]} 16. O-O {[%emt 0:02:30]} Bxf3 {[%emt 0:01:30]} 17. Qxf3 {[%emt 0:00:30]} Qxe5 {[%emt 0:00:30]} 18. h4 {[%emt 0:01:30]} Rad8 {[%emt 0:03:30]} 19. g3 {[%emt 0:03:30]} Nc7 {[%emt 0:11:30]} 20. Kg2 {[%emt 0:02:30]} Rd6 {[%emt 0:12:30]} 21. Bb1 {[%emt 0:10:30]} Rxd1 {[%emt 0:10:38]} 22. Rxd1 {[%emt 0:00:30]} Qe7 {[%emt 0:00:43]} 23. Rd3 {[%emt 0:08:30]} Ne6 {[%emt 0:03:49]} 24. Re3 {[%emt 0:00:30]} g6 {[%emt 0:00:55]} 25. h5 {[%emt 0:02:30]} Qg5 {[%emt 0:02:07]} 26. hxg6 {[%emt 0:03:30]} hxg6 {[%emt 0:00:03]} 27. c5 {[%emt 0:00:00]} Rd8 {[%emt 0:01:32]} 28. Ba2 {[%emt 0:02:00]} Re8 {[%emt 0:01:35]} 29. Re4 {[%emt 0:00:30]} Kg7 {[%emt 0:00:47]} 30. Rh4 {[%emt 0:01:06]} Qe5 {[%emt 0:02:46]} 31. Re4 {[%emt 0:04:08]} Qf6 {[%emt 0:00:16]} 32. Qe3 {[%emt 0:00:15]} Re7 {[%emt 0:01:28]} 33. Bxe6 {[%emt 0:03:57]} Rxe6 {[%emt 0:00:36]} 34. Rxe6 {[%emt 0:00:51]} fxe6 {[%emt 0:00:32]} 35. Qd3 {[%emt 0:01:12]} Qf7 {[%emt 0:00:58]} 36. Qd4+ {[%emt 0:01:24]} Kh7 {[%emt 0:00:05]} 37. g4 {[%emt 0:00:34]} g5 {[%emt 0:01:48]} 38. Qe5 {[%emt 0:01:40]} Kg6 {[%emt 0:00:18]} 39. Kg3 {[%emt 0:05:32]} Qd7 {[%emt 0:01:45]} 40. Qd6 {[%emt 0:00:00]} Qf7 {[%emt 0:00:00]} 41. f4 {[%emt 0:15:21]} gxf4+ {[%emt 0:00:49]} 42. Qxf4 {[%emt 0:00:30]} Qd7 {[%emt 0:00:30]} 43. Qd6 {[%emt 0:00:30]} Qf7 {[%emt 0:00:00]} 44. Qd8 {[%emt 0:02:59]} Kg7 {[%emt 0:02:00]} 45. Qg5+ {[%emt 0:00:17]} Kf8 {[%emt 0:25:09]} 46. Qf4 {[%emt 0:01:22]} e5 {[%emt 0:00:02]} 47. Kf3 {[%emt 0:01:36]} b6 {[%emt 0:01:49]} 48. Ke4 {[%emt 0:02:36]} 1-0

[Event "World Junior U20 Girls 2018"]
[Site "Gebze"]
[Date "2018.09.05"]
[Round "1"]
[White "Chitlange Sakshi"]
[Black "Nastase, Andreea-Cristina"]
[Result "1-0"]
[ECO "D11"]
[WhiteElo "2279"]
[BlackElo "1983"]
[Annotator "NA"]
[PlyCount "79"]
[EventDate "2018.09.05"]
[EventType "swiss"]
[EventCountry "TUR"]
[SourceTitle "playchess.com"]
[Source "ChessBase"]
[SourceQuality "1"]
[TimeControl "40/5400+30:1800+30"]

1. d4 d5 2. c4 dxc4 3. Nf3 b5 4. a4 c6 5. e3 e6 6. axb5 cxb5 7. b3 Bb4+ 8. Bd2 Bxd2+ 9. Nbxd2 Nf6 10. bxc4 bxc4 11. Bxc4 O-O 12. O-O Bb7 13. Qe2 Nbd7 14. Ra3 Nb6 15. Bd3 Qe7 16. Rfa1 Nc8 17. e4 h6 18. Ra5 Rd8 19. Nb3 Rb8 20. Nc5 Ba8 21. h3 Nd7 22. Rc1 Nxc5 23. Raxc5 Nb6 24. Ba6 Bb7 25. Ne5 Qd6 26. Bxb7 Rxb7 27. Qa6 {[%emt 0:51:30]} Rbd7 {[%emt 1:18:30]} 28. Nxd7 {[%emt 0:01:30]} Rxd7 {[%emt 0:00:30]} 29. d5 {[%emt 0:00:30]} exd5 {[%emt 0:00:30]} 30. exd5 {[%emt 0:00:30]} Qe5 {[%emt 0:01:30]} 31. Qd3 {[%emt 0:00:00]} g6 {[%emt 0:01:30]} 32. Qd2 {[%emt 0:05:00]} Kg7 {[%emt 0:01:30]} 33. Re1 {[%emt 0:02:30]} Rxd5 {[%emt 0:02:33]} 34. Rxd5 {[%emt 0:04:30]} Qxd5 {[%emt 0:00:30]} 35. Qc3+ {[%emt 0:00:30]} Kh7 {[%emt 0:00:30]} 36. Re8 {[%emt 0:02:30]} Qd1+ {[%emt 0:03:06]} 37. Kh2 {[%emt 0:00:30]} Qd6+ {[%emt 0:00:30]} 38. g3 {[%emt 0:00:30]} g5 {[%emt 0:00:00]} 39. Rh8+ {[%emt 0:00:30]} Kg6 {[%emt 0:01:07]} 40. Rg8+ {[%emt 0:00:00]} 1-0

[Event "World Junior U20 Girls 2018"]
[Site "Gebze"]
[Date "2018.09.05"]
[Round "1"]
[White "Haussernot, Cecile"]
[Black "Heydarova, Aytaj"]
[Result "1-0"]
[ECO "B77"]
[WhiteElo "2237"]
[BlackElo "1948"]
[Annotator "NA"]
[PlyCount "93"]
[EventDate "2018.09.05"]
[EventType "swiss"]
[EventCountry "TUR"]
[SourceTitle "playchess.com"]
[Source "ChessBase"]
[SourceQuality "1"]
[TimeControl "40/5400+30:1800+30"]

1. e4 c5 2. Nf3 d6 3. d4 cxd4 4. Nxd4 Nf6 5. Nc3 g6 6. Be3 Bg7 7. f3 Nc6 8. Qd2 O-O 9. Bc4 Nxd4 10. Bxd4 Be6 11. Bxe6 fxe6 12. O-O-O Qa5 13. Kb1 Rac8 14. Qe1 Nd7 15. Bxg7 Kxg7 16. Rd4 b5 17. Qe3 b4 18. Ne2 e5 19. Rd5 Qc7 20. Rc1 Nb6 21. Rd3 Nc4 22. Qf2 a5 23. f4 Qb7 24. Qh4 Qxe4 {[%emt 1:20:00]} 25. Re1 {[%emt 0:58:30]} Qb7 {[%emt 0:08:27]} 26. Rh3 {[%emt 0:01:30]} h5 {[%emt 0:01:06]} 27. Rg3 {[%emt 0:02:30]} Nd2+ {[%emt 0:00:36]} 28. Ka1 {[%emt 0:00:30]} Ne4 {[%emt 0:00:30]} 29. Re3 {[%emt 0:01:30]} Rc5 {[%emt 0:10:49]} 30. Nd4 {[%emt 0:00:30]} exd4 {[%emt 0:01:19]} 31. Rxe4 {[%emt 0:00:30]} e5 {[%emt 0:00:00]} 32. fxe5 {[%emt 0:04:30]} dxe5 {[%emt 0:00:25]} 33. g4 {[%emt 0:00:30]} hxg4 {[%emt 0:00:50]} 34. Rxg4 {[%emt 0:00:30]} Rf6 {[%emt 0:01:02]} 35. Qg5 {[%emt 0:01:30]} Qc6 {[%emt 0:00:52]} 36. Rh4 {[%emt 0:04:30]} Rxc2 {[%emt 0:00:40]} 37. Qh6+ {[%emt 0:01:30]} Kf7 {[%emt 0:00:02]} 38. Rxd4 {[%emt 0:03:30]} Qc8 {[%emt 0:01:27]} 39. Rd5 {[%emt 0:04:30]} Rf5 {[%emt 0:00:47]} 40. Rxa5 {[%emt 0:00:00]} Rc7 {[%emt 0:00:00]} 41. Rg1 {[%emt 0:03:00]} Qg8 {[%emt 0:08:38]} 42. Qd2 {[%emt 0:02:30]} Qf8 {[%emt 0:01:30]} 43. Ra6 {[%emt 0:01:30]} g5 {[%emt 0:00:30]} 44. Qd3 {[%emt 0:05:30]} Kg7 {[%emt 0:03:37]} 45. Qh3 {[%emt 0:00:30]} Kg8 {[%emt 0:03:32]} 46. Rg6+ {[%emt 0:00:30]} Rg7 {[%emt 0:00:53]} 47. Rh6 {[%emt 0:00:30]} 1-0

[Event "World Junior U20 Girls 2018"]
[Site "Gebze"]
[Date "2018.09.05"]
[Round "1"]
[White "Paramzina, Anastasya"]
[Black "Kocyigit, Buse Naz"]
[Result "1-0"]
[ECO "C12"]
[WhiteElo "2222"]
[BlackElo "1944"]
[Annotator "NA"]
[PlyCount "71"]
[EventDate "2018.09.05"]
[EventType "swiss"]
[EventCountry "TUR"]
[SourceTitle "playchess.com"]
[Source "ChessBase"]
[SourceQuality "1"]
[TimeControl "40/5400+30:1800+30"]

1. e4 e6 2. d4 d5 3. Nc3 Nf6 4. Bg5 Bb4 5. e5 h6 6. Be3 Ne4 7. Qg4 Kf8 8. a3 f5 9. exf6 Nxf6 10. Qf3 Be7 11. Nge2 Nc6 12. Nf4 Kf7 13. Bd3 e5 14. Bg6+ Kg8 15. Nfe2 Be6 {[%emt 0:52:30]} 16. O-O {[%emt 1:18:22]} Bd6 {[%emt 0:05:30]} 17. Bf5 {[%emt 0:01:19]} Bf7 {[%emt 0:05:30]} 18. Qh3 {[%emt 0:03:37]} exd4 {[%emt 0:19:19]} 19. Bxd4 {[%emt 0:00:43]} Nxd4 {[%emt 0:01:34]} 20. Nxd4 {[%emt 0:00:06]} g6 {[%emt 0:01:57]} 21. Be6 {[%emt 0:01:25]} Bxe6 {[%emt 0:01:10]} 22. Qxe6+ {[%emt 0:02:38]} Kg7 {[%emt 0:00:14]} 23. Qh3 {[%emt 0:01:05]} Kh7 {[%emt 0:02:46]} 24. Rad1 {[%emt 0:02:10]} c6 {[%emt 0:00:48]} 25. f4 {[%emt 0:00:50]} Bc5 {[%emt 0:01:50]} 26. f5 {[%emt 0:01:38]} g5 {[%emt 0:00:07]} 27. Nce2 {[%emt 0:01:04]} Re8 {[%emt 0:00:21]} 28. Kh1 {[%emt 0:00:20]} Ne4 {[%emt 0:02:35]} 29. f6 {[%emt 0:01:45]} Re5 {[%emt 0:02:28]} 30. Nf3 {[%emt 0:02:00]} Qxf6 {[%emt 0:00:41]} 31. Nxe5 {[%emt 0:00:30]} Qxe5 {[%emt 0:01:33]} 32. Rf7+ {[%emt 0:02:32]} Kg6 {[%emt 0:00:15]} 33. Rdf1 {[%emt 0:00:39]} h5 {[%emt 0:03:25]} 34. Ng3 {[%emt 0:00:51]} Nxg3+ {[%emt 0:01:18]} 35. Qxg3 {[%emt 0:00:13]} Qxg3 {[%emt 0:01:04]} 36. R1f6# {[%emt 0:00:15]} 1-0

[Event "World Junior U20 Girls 2018"]
[Site "Gebze"]
[Date "2018.09.05"]
[Round "1"]
[White "Altantuya, Boldbaatar"]
[Black "Hereklioglu, Sude"]
[Result "0-1"]
[ECO "E90"]
[WhiteElo "2210"]
[BlackElo "1930"]
[Annotator "NA"]
[PlyCount "76"]
[EventDate "2018.09.05"]
[EventType "swiss"]
[EventCountry "TUR"]
[SourceTitle "playchess.com"]
[Source "ChessBase"]
[SourceQuality "1"]
[TimeControl "40/5400+30:1800+30"]

1. d4 g6 2. c4 Bg7 3. Nc3 c5 4. d5 d6 5. e4 Na6 6. Bd3 Nf6 7. h3 O-O 8. Nf3 e5 9. Be3 Nc7 10. Qd2 b6 11. Bh6 Rb8 12. g4 a6 13. a4 Bd7 14. Bxg7 Kxg7 15. Qe2 Qe8 16. b3 b5 17. axb5 axb5 18. O-O Qc8 19. Nd2 b4 20. Na4 {[%emt 1:06:00]} h5 {[%emt 1:03:00]} 21. f3 {[%emt 0:03:30]} Nce8 {[%emt 0:11:30]} 22. Qg2 {[%emt 0:01:30]} Kh8 {[%emt 0:00:30]} 23. Qg3 {[%emt 0:00:30]} g5 {[%emt 0:02:30]} 24. h4 {[%emt 0:04:30]} Rg8 {[%emt 0:03:30]} 25. Kf2 {[%emt 0:07:14]} hxg4 {[%emt 0:06:59]} 26. Rh1 {[%emt 0:13:25]} Nh7 {[%emt 0:05:59]} 27. hxg5 {[%emt 0:02:18]} Rg7 {[%emt 0:01:05]} 28. Rh6 {[%emt 0:02:06]} Qd8 {[%emt 0:00:51]} 29. Rh5 {[%emt 0:01:43]} Rxg5 {[%emt 0:04:04]} 30. Rh6 {[%emt 0:01:36]} Rg6 {[%emt 0:01:30]} 31. Rah1 {[%emt 0:00:30]} Rxh6 {[%emt 0:00:40]} 32. Rxh6 {[%emt 0:00:43]} Qg5 {[%emt 0:00:00]} 33. Qh4 {[%emt 0:00:19]} Qxd2+ {[%emt 0:01:58]} 34. Kg1 {[%emt 0:00:26]} Qe3+ {[%emt 0:00:25]} 35. Kh2 {[%emt 0:00:35]} Qf4+ {[%emt 0:01:07]} 36. Kg1 {[%emt 0:00:18]} Nef6 {[%emt 0:00:00]} 37. fxg4 {[%emt 0:00:43]} Qxg4+ {[%emt 0:01:12]} 38. Qxg4 {[%emt 0:00:00]} Bxg4 {[%emt 0:00:00]} 0-1

[Event "World Junior U20 Girls 2018"]
[Site "Gebze"]
[Date "2018.09.05"]
[Round "1"]
[White "Ghukasyan, Siranush"]
[Black "Koo, Wei Xin Rosamund"]
[Result "1-0"]
[ECO "B34"]
[WhiteElo "2205"]
[BlackElo "1918"]
[Annotator "NA"]
[PlyCount "65"]
[EventDate "2018.09.05"]
[EventType "swiss"]
[EventCountry "TUR"]
[SourceTitle "playchess.com"]
[Source "ChessBase"]
[SourceQuality "1"]
[TimeControl "40/5400+30:1800+30"]

1. e4 c5 2. Nf3 g6 3. d4 cxd4 4. Nxd4 Nf6 5. Nc3 Nc6 6. Be3 Bg7 7. Nxc6 bxc6 8. e5 Ng8 9. Bd4 f6 10. exf6 Nxf6 11. Bc4 e6 12. Bc5 d5 13. Be2 Qa5 14. Qd4 Kf7 {[%emt 0:57:00]} 15. Qb4 {[%emt 1:18:53]} Qxb4 {[%emt 0:01:30]} 16. Bxb4 {[%emt 0:00:02]} e5 {[%emt 0:03:30]} 17. Na4 {[%emt 0:02:39]} Bf5 {[%emt 0:05:30]} 18. Bd3 {[%emt 0:01:31]} a5 {[%emt 0:06:30]} 19. Ba3 {[%emt 0:02:45]} Nd7 {[%emt 0:01:30]} 20. O-O-O {[%emt 0:03:24]} Rhd8 {[%emt 0:09:35]} 21. Rhe1 {[%emt 0:01:08]} Bxd3 {[%emt 0:08:26]} 22. cxd3 {[%emt 0:01:27]} Rac8 {[%emt 0:03:41]} 23. Kb1 {[%emt 0:00:58]} c5 {[%emt 0:00:54]} 24. Rc1 {[%emt 0:01:19]} Bf8 {[%emt 0:00:03]} 25. Nc3 {[%emt 0:00:30]} Ke6 {[%emt 0:01:48]} 26. f4 {[%emt 0:03:49]} Bd6 {[%emt 0:00:30]} 27. Na4 {[%emt 0:00:30]} c4 {[%emt 0:01:09]} 28. Bxd6 {[%emt 0:01:29]} Kxd6 {[%emt 0:00:04]} 29. dxc4 {[%emt 0:00:12]} exf4 {[%emt 0:01:29]} 30. Red1 {[%emt 0:00:28]} Nf6 {[%emt 0:00:35]} 31. Nb6 {[%emt 0:01:05]} Rc5 {[%emt 0:00:36]} 32. cxd5 {[%emt 0:00:26]} Nxd5 {[%emt 0:00:41]} 33. Nxd5 {[%emt 0:00:41]} 1-0

[Event "World Junior U20 Girls 2018"]
[Site "Gebze"]
[Date "2018.09.05"]
[Round "1"]
[White "Hilario, Aleyla"]
[Black "Doroy Allaney Jia G"]
[Result "1-0"]
[ECO "E65"]
[WhiteElo "2203"]
[BlackElo "1914"]
[Annotator "NA"]
[PlyCount "68"]
[EventDate "2018.09.05"]
[EventType "swiss"]
[EventCountry "TUR"]
[SourceTitle "playchess.com"]
[Source "ChessBase"]
[SourceQuality "1"]
[TimeControl "40/5400+30:1800+30"]

1. d4 Nf6 2. Nf3 g6 3. c4 Bg7 4. g3 O-O 5. Bg2 d6 6. O-O c5 7. Nc3 Nc6 8. h3 Bd7 9. Be3 cxd4 10. Nxd4 Rc8 11. b3 a6 12. Rc1 Nxd4 13. Bxd4 Bc6 14. e4 Bh6 15. Rc2 {[%emt 0:51:30]} Nh5 {[%emt 1:16:30]} 16. Nd5 {[%emt 0:04:30]} b5 {[%emt 0:10:32]} 17. c5 {[%emt 0:05:30]} Bxd5 {[%emt 0:03:12]} 18. exd5 {[%emt 0:00:30]} dxc5 {[%emt 0:00:15]} 19. Bxc5 {[%emt 0:00:00]} Qd7 {[%emt 0:00:59]} 20. b4 {[%emt 0:00:00]} Rfd8 {[%emt 0:03:02]} 21. Qe2 {[%emt 0:07:30]} Nf6 {[%emt 0:00:39]} 22. Qxe7 {[%emt 0:04:30]} Qf5 {[%emt 0:02:07]} 23. Bd4 {[%emt 0:11:26]} Ne8 {[%emt 0:02:55]} 24. Rxc8 {[%emt 0:05:03]} Qxc8 {[%emt 0:00:16]} 25. Bc5 {[%emt 0:01:06]} Rd7 {[%emt 0:00:36]} 26. Qh4 {[%emt 0:00:45]} Bg7 {[%emt 0:00:13]} 27. Re1 {[%emt 0:00:54]} h5 {[%emt 0:00:55]} 28. Qf4 {[%emt 0:00:36]} Qd8 {[%emt 0:01:11]} 29. d6 {[%emt 0:01:15]} Nxd6 {[%emt 0:00:30]} 30. Bc6 {[%emt 0:00:30]} g5 {[%emt 0:00:30]} 31. Qd2 {[%emt 0:00:30]} Rc7 {[%emt 0:00:30]} 32. Re8+ {[%emt 0:01:08]} Qxe8 {[%emt 0:00:26]} 33. Bxe8 {[%emt 0:00:30]} Nxe8 {[%emt 0:00:30]} 34. Qd8 {[%emt 0:00:00]} Bf8 {[%emt 0:00:17]} 1-0

[Event "World Junior U20 Girls 2018"]
[Site "Gebze"]
[Date "2018.09.05"]
[Round "1"]
[White "Kanakova, Natalie"]
[Black "Aksoy, Ayca"]
[Result "1-0"]
[ECO "A25"]
[WhiteElo "2201"]
[BlackElo "1898"]
[Annotator "NA"]
[PlyCount "57"]
[EventDate "2018.09.05"]
[EventType "swiss"]
[EventCountry "TUR"]
[SourceTitle "playchess.com"]
[Source "ChessBase"]
[SourceQuality "1"]
[TimeControl "40/5400+30:1800+30"]

1. c4 e5 2. Nc3 Nc6 3. g3 d6 4. Bg2 Be6 5. d3 Qd7 6. Rb1 g6 7. b4 Bg7 8. b5 Nd8 9. e3 Ne7 10. Nd5 O-O 11. a4 c6 12. Nxe7+ Qxe7 13. Ba3 Qd7 14. a5 f5 15. Qd2 {[%emt 1:02:30]} Rc8 {[%emt 1:03:30]} 16. bxc6 {[%emt 0:00:30]} bxc6 {[%emt 0:00:30]} 17. Ne2 {[%emt 0:00:30]} g5 {[%emt 0:01:30]} 18. f4 {[%emt 0:03:30]} gxf4 {[%emt 0:03:30]} 19. exf4 {[%emt 0:01:30]} Nf7 {[%emt 0:06:30]} 20. O-O {[%emt 0:01:30]} Rfd8 {[%emt 0:02:30]} 21. a6 {[%emt 0:02:30]} Rb8 {[%emt 0:02:30]} 22. Qa5 {[%emt 0:07:30]} e4 {[%emt 0:03:02]} 23. Qd2 {[%emt 0:00:30]} d5 {[%emt 0:05:38]} 24. dxe4 {[%emt 0:02:10]} fxe4 {[%emt 0:05:10]} 25. cxd5 {[%emt 0:01:36]} cxd5 {[%emt 0:00:04]} 26. Nd4 {[%emt 0:03:10]} Nd6 {[%emt 0:01:56]} 27. Rxb8 {[%emt 0:07:27]} Rxb8 {[%emt 0:00:12]} 28. f5 {[%emt 0:02:27]} Nxf5 {[%emt 0:01:46]} 29. Qf4 {[%emt 0:00:00]} 1-0